Cogmind - Beta 13 @@@ ROGUE MODE // 2024.04.19 @ 03:07:39 Player: Zirov Result: Self-destructed Performance ------------- Evolutions (1) 500 Regions Visited (4) 800 Robots Destroyed (35) 175 Value Destroyed (739) 739 Prototype IDs (3) 60 Alien Tech Used (0) 0 Bonus (131) 131 TOTAL SCORE: 2405 Bonus ------- Follower Combat Kills 131 Cogmind --------- Core Integrity 321/400 Matter 143/300 Energy 280/280 System Corruption 0% Temperature Cool (21) Movement Treading (320) Ox2 Location -9/Mines Parts ------- > --- POWER (1) -------- Heavy Ion Engine > --- PROPULSION (3) --- Light Treads > --- UTILITY (3) ------ High-capacity Storage Unit Seismic Detector > --- WEAPON (2) ------- Rocket Launcher Rocket Launcher > --- INVENTORY (20) --- Light Ion Engine Light Treads Light Treads Cooling System Medium Storage Unit Signal Interpreter Light Armor Plating Particle Cannon Light Cannon Mini Grenade Launcher Flail Peak State ------------ > --- POWER ------------ Heavy Ion Engine > --- PROPULSION ------- Light Treads Light Treads Light Treads > --- UTILITY ---------- High-capacity Storage Unit Seismic Detector Light Armor Plating > --- WEAPON ----------- Rocket Launcher Flail > --- INVENTORY -------- Light Ion Engine Light Treads Light Treads Cooling System Medium Storage Unit Signal Interpreter Light Armor Plating Particle Cannon Light Cannon Rocket Launcher Mini Grenade Launcher [Rating: 14] Favorites ----------- Power Ion Engine Engine Ion Engine Propulsion Light Treads Treads Light Treads Utility Seismic Detector Device Seismic Detector Storage Medium Storage Unit Protection Light Armor Plating Weapon Light Cannon Energy Gun Small Laser Ballistic Gun Assault Rifle Ballistic Cannon Light Cannon Launcher Grenade Launcher Impact Weapon Flail Build | -11 -10 -10 -9 -9 ------- Run | Yrd Mat Min Mat Min Slots Evolved 2 | . . . 2 . Power . | . . . . . Propulsion 1 | . . . 1 . Utility 1 | . . . 1 . Weapon . | . . . . . Parts Attached 36 | 6 8 2 17 3 Power 4 | 1 2 . 1 . Engine 4 | 1 2 . 1 . Core . | . . . . . Reactor . | . . . . . Propulsion 8 | 2 . 2 4 . Treads 8 | 2 . 2 4 . Leg . | . . . . . Wheel . | . . . . . Hover . | . . . . . Flight . | . . . . . Utility 8 | 1 3 . 3 1 Device 2 | 1 1 . . . Storage 2 | . . . 1 1 Processor . | . . . . . Hackware . | . . . . . Protection 4 | . 2 . 2 . Artifact . | . . . . . Weapon 16 | 2 3 . 9 2 Energy Gun 1 | 1 . . . . Energy Cannon . | . . . . . Ballistic Gun 2 | 1 1 . . . Ballistic Cannon 2 | . 1 . 1 . Launcher 7 | . 1 . 4 2 Special Weapon . | . . . . . Impact Weapon 4 | . . . 4 . Slashing Weapon . | . . . . . Piercing Weapon . | . . . . . Special Melee Weapon . | . . . . . Unidentified Prototypes 1 | . . . 1 . Parts Lost 4 | . 1 . . 3 Power . | . . . . . Propulsion 2 | . . . . 2 Utility 2 | . 1 . . 1 Weapon . | . . . . . Highest Loss Streak 3 | . 1 . . 3 To Critical Strikes . | . . . . . Average Slot Usage (%) 98 | . 94 100 99 100 Engine 12 | . 14 14 11 11 Treads 31 | . 28 28 33 33 Device 13 | . 19 14 11 11 Storage 6 | . . . 10 11 Protection 9 | . 3 14 11 11 Ballistic Gun 2 | . 9 . . . Ballistic Cannon 10 | . 9 14 10 7 Launcher 7 | . 9 14 7 4 Impact Weapon 3 | . . . 3 10 Naked Turns . | . . . . . Heaviest Build 58 | 9 15 15 29 58 Greatest Support 60 | 40 40 40 60 60 Greatest Overweight (x) . | . . . . . Average Overweight (x) . | . . . . . Largest Inventory Capacity 20 | 5 5 5 10 20 Average Capacity 9 | 5 5 5 9 17 Most Carried 11 | . 5 5 10 11 Average Carried 7 | . 3 4 9 10 Final Capacity 20 | 5 5 5 10 20 Final Carried 11 | . 5 5 10 11 Class Distribution -------------------- 50% | Scavenger-Mutant 49% | Mutant Dominant Class ---------------- Mutant | -10/Materials Mutant | -10/Mines Scavenger-Mutant | -9/Materials Scavenger-Mutant | -9/Mines Resources | -11 -10 -10 -9 -9 ----------- Run | Yrd Mat Min Mat Min Matter Collected 997 | 228 285 105 328 51 Remotely . | . . . . . Salvage Created 793 | 40 310 16 427 . Parts 64 | 4 19 5 36 . Haulers Intercepted 2 | . 1 . 1 . Recyclers Shooed 3 | . . 1 2 . Parts Field Recycled . | . . . . . Retrieved Matter . | . . . . . Parts Self-Destructed . | . . . . . Prevented . | . . . . . Kills | -11 -10 -10 -9 -9 ------- Run | Yrd Mat Min Mat Min Combat Hostiles Destroyed 22 | . 6 2 14 . Guns 5 | . 5 . . . Cannons 8 | . 1 . 7 . AOE 9 | . . 2 7 . Classes Destroyed 9 | 1 6 . 2 . Tunneler 4 | 2 . 1 . 1 Hauler 2 | . 1 . 1 . Recycler 2 | . 1 . 1 . Operator 1 | . 1 . . . Watcher 4 | . 3 . 1 . Swarmer 9 | . 3 2 4 . Grunt 7 | . 3 . 4 . Brawler 1 | . . . 1 . Sentry 5 | . . . 5 . Best Kill Streak 5 | 1 3 3 5 1 Combat Bots Only 5 | . 3 2 5 . Max Kills in Single Turn 3 | 1 1 2 3 1 Gunslinging . | . . . . . Exploded 3 | . . 2 3 . Melee . | . . . . . Uniques/NPCs Destroyed . | . . . . . Combat | -11 -10 -10 -9 -9 -------- Run | Yrd Mat Min Mat Min Hostile Shots Fired 95 | . 31 7 50 7 Missed 19 | . 8 . 11 . Damage Taken 1322 | . 319 124 542 337 Core 129 | . 50 . 51 28 Absorbed by Shields . | . . . . . Regen/Repaired (Parts) 118 | . . . 118 . Core Remaining (%) 90 | 100 . 80 . . Volleys Fired 119 | 4 42 9 61 3 Largest 2 | 2 2 1 1 2 Hottest 66 | 60 40 35 35 66 Shots Fired 145 | 8 61 9 61 6 Gun 46 | 8 38 . . . Cannon 85 | . 23 6 56 . Launcher 14 | . . 3 5 6 Special . | . . . . . Kinetic 127 | 4 61 6 56 . Thermal 4 | 4 . . . . Explosive 14 | . . 3 5 6 Electromagnetic . | . . . . . Robot Hit Streak 22 | 2 10 3 22 5 Robot Miss Streak 4 | 2 4 1 3 . Penetration Max . | . . . . . Secondary Targets . | . . . . . Shots Hit Robots 100 | 5 40 4 46 5 Core Hits 51 | 2 15 4 24 6 Critical Kills . | . . . . . Critical Parts Destroyed . | . . . . . Critical Strikes 2 | . . . 2 . Blast 2 | . . . 2 . Melee Attacks 19 | . . . 19 . Impact 19 | . . . 19 . Slashing . | . . . . . Piercing . | . . . . . Sneak Attacks 1 | . . . 1 . Combat Hostiles . | . . . . . Follow-up Attacks . | . . . . . Damage Inflicted 2328 | 53 611 192 1357 115 Guns 392 | 53 339 . . . Cannons 1104 | . 272 70 762 . Explosions 770 | . . 122 533 115 Melee 62 | . . . 62 . Ramming . | . . . . . Kinetic 1464 | 21 611 70 762 . Thermal 32 | 32 . . . . Explosive 770 | . . 122 533 115 Electromagnetic . | . . . . . Impact 62 | . . . 62 . Slashing . | . . . . . Piercing . | . . . . . Highest Corruption . | . . . . . Average Corruption . | . . . . . Corruption Purged . | . . . . . Corruption Blocked . | . . . . . Overload Shots . | . . . . . Overflow Damage 56 | . . . 56 . Projectiles 6 | . . . 6 . Explosions 50 | . . . 50 . Melee . | . . . . . Knockbacks 4 | . 3 . 1 . Impact . | . . . . . Kinetic 4 | . 3 . 1 . Secondary . | . . . . . Self-Inflicted Damage 96 | . . . . 96 Shots 5 | . . . . 5 Rammed . | . . . . . Targets Rammed . | . . . . . Kicked . | . . . . . Crushed . | . . . . . Highest Temperature 36 | . 3 36 28 21 Average Temperature 10 | . 2 18 10 14 Received Heat Transfer 309 | . 114 36 159 . Siege Activations . | . . . . . Robots Corrupted . | . . . . . Combat Hostiles . | . . . . . Parts Fried . | . . . . . Impact Corruptions . | . . . . . Robots Melted . | . . . . . Combat Hostiles . | . . . . . Parts Melted . | . . . . . Heat Transferred 75 | 75 . . . . Parts Sabotaged . | . . . . . Parts Stolen . | . . . . . Parts Stripped . | . . . . . Power Chain Reactions . | . . . . . Alert | -11 -10 -10 -9 -9 ------- Run | Yrd Mat Min Mat Min Peak Influence 215 | 10 150 195 215 40 Initial 76 | . 6 29 76 40 Average 79 | 6 56 99 114 29 Maximum Alert Level 1 | . . . 1 . Low Security (%) 96 | 100 100 100 91 100 Level 1 3 | . . . 8 . Level 2 . | . . . . . Level 3 . | . . . . . Level 4 . | . . . . . Level 5 . | . . . . . High Security . | . . . . . Max Security . | . . . . . Squads Dispatched 2 | . . . 2 . Investigation . | . . . . . Extermination . | . . . . . Reinforcement 2 | . . . 2 . Assault . | . . . . . Garrison . | . . . . . Intercept . | . . . . . Searches Triggered . | . . . . . Construction Impeded . | . . . . . Haulers Reinforced . | . . . . . Active Scanning Responses . | . . . . . Cargo Convoy Interrupts . | . . . . . Stealth | -11 -10 -10 -9 -9 --------- Run | Yrd Mat Min Mat Min Distress Signals 3 | . 1 . 2 . Communications Jammed . | . . . . . Distress Signals . | . . . . . Times Spotted 42 | . 13 5 21 3 Peak Tracking Total 5 | . 5 3 5 2 Tactical Retreats . | . . . . . Traps | -11 -10 -10 -9 -9 ------- Run | Yrd Mat Min Mat Min Traps Triggered 1 | . 1 . . . Indirectly . | . . . . . Trap Hack Attempts . | . . . . . Triggered . | . . . . . Disarmed . | . . . . . Reprogrammed . | . . . . . Reused . | . . . . . Traps Extracted . | . . . . . Installed . | . . . . . Triggered . | . . . . . Machines | -11 -10 -10 -9 -9 ---------- Run | Yrd Mat Min Mat Min Machines Disabled . | . . . . . Max in Single Turn . | . . . . . Machines Repaired . | . . . . . Machines Dismantled . | . . . . . Machines Sabotaged . | . . . . . Overloaded Fab Kills . | . . . . . Hacking | -11 -10 -10 -9 -9 --------- Run | Yrd Mat Min Mat Min Machines Accessed 11 | . 5 . 6 . Terminals 10 | . 5 . 5 . Fabricators . | . . . . . Repair Stations 1 | . . . 1 . Recycling Units . | . . . . . Scanalyzers . | . . . . . Garrison Access . | . . . . . Total Hacks 41 | . 17 . 24 . Successful 21 | . 4 . 17 . Failed 20 | . 13 . 7 . Catastrophic 2 | . 1 . 1 . Database Lockouts . | . . . . . Manual 19 | . 11 . 8 . Terminals 38 | . 17 . 21 . Fabricators . | . . . . . Repair Stations 3 | . . . 3 . Recycling Units . | . . . . . Scanalyzers . | . . . . . Garrison Access . | . . . . . Terminal Hacks 12 | . 1 . 11 . Prototype ID Bank 1 | . . . 1 . Emergency Access Points 1 | . . . 1 . Terminal Index 1 | . . . 1 . Unreport Threat 1 | . . . 1 . Locate Traps 2 | . 1 . 1 . Dispatch Records 1 | . . . 1 . Security Status 1 | . . . 1 . Registered Components 1 | . . . 1 . Zone Layout 3 | . . . 3 . Fabricator Hacks . | . . . . . Repair Station Hacks 3 | . . . 3 . Scan Component 2 | . . . 2 . Repair 1 | . . . 1 . Recycling Unit Hacks . | . . . . . Scanalyzer . | . . . . . Garrison Access Hacks . | . . . . . Unauthorized Hacks 6 | . 3 . 3 . Terminals 6 | . 3 . 3 . Botnet 6 | . 3 . 3 . Fabricators . | . . . . . Repair Stations . | . . . . . Recycling Units . | . . . . . Scanalyzers . | . . . . . Garrison Access . | . . . . . Data Cores Recovered 1 | . 1 . . . Used . | . . . . . Hacking Detections 11 | . 5 . 6 . Full Trace Events . | . . . . . Feedback Events . | . . . . . Feedback Blocked . | . . . . . Robot Schematics Acquired . | . . . . . Robots Built . | . . . . . Authchips . | . . . . . Time . | . . . . . Total Robot Build Rating . | . . . . . Part Schematics Acquired . | . . . . . Parts Built . | . . . . . Authchips . | . . . . . Time . | . . . . . Total Part Build Rating . | . . . . . Parts Repaired 1 | . . . 1 . Time 26 | . . . 26 . Parts Recycled . | . . . . . Recycled Matter . | . . . . . Retrieved Matter . | . . . . . Retrieved Components . | . . . . . Parts Scanalyzed . | . . . . . Part Schematics Acquired . | . . . . . Parts Damaged . | . . . . . Bothacking | -11 -10 -10 -9 -9 ------------ Run | Yrd Mat Min Mat Min Used RIF Installer . | . . . . . Robots Hacked . | . . . . . Non-combat . | . . . . . Combat . | . . . . . Robot Hacks Applied . | . . . . . Relay Couplers Released . | . . . . . Fabnet Peak Effective % . | . . . . . Robots Rewired . | . . . . . Allies Hacked . | . . . . . Hacks Repelled . | . . . . . Allies | -11 -10 -10 -9 -9 -------- Run | Yrd Mat Min Mat Min Total Allies 3 | . . 3 . . Largest Group 3 | . . 3 2 . Highest-Rated Group 40 | . . 40 32 . Highest-Rated Ally 16 | . . 16 16 . Total Orders . | . . . . . Ally Attacks 26 | . . 10 16 . Total Damage 352 | . . 126 226 . Kills 6 | . . 3 3 . Allies Corrupted 1 | . . 1 . . Allies Melted 1 | . . . 1 . Intel | -11 -10 -10 -9 -9 ------- Run | Yrd Mat Min Mat Min Robot Analysis Total . | . . . . . Derelict Logs Recovered 2 | . . 1 . 1 Drone Launches . | . . . . . Drone Recoveries . | . . . . . Exploration | -11 -10 -10 -9 -9 ------------- Run | Yrd Mat Min Mat Min Turns Passed 3195 | 125 795 358 1375 542 Spaces Moved 1627 | 44 390 208 659 326 Core 6 | 6 . . . . Treads 1621 | 38 390 208 659 326 Legs . | . . . . . Wheels . | . . . . . Hover . | . . . . . Flight . | . . . . . Fastest Speed 50 | 50 160 160 160 160 Average Speed 159 | 145 160 160 160 160 Slowest Speed 160 | 160 160 160 160 160 Overloaded Moves . | . . . . . Propulsion Burnouts . | . . . . . Robots Hopped . | . . . . . Cave-ins Triggered . | . . . . . Exploration Rate (%) 45 | 4 56 35 51 80 Regions Visited 4 Branch Regions 2 Pre-discovered Areas 1 | . . 1 . . Known Exits Taken . | . . . . . Unknown Exits Taken 4 | 1 1 1 1 . Scrap Searched 3 | . . . . 3 Spaces Dug 8 | . . . 8 . Terrain Destroyed 112 | . . 26 48 38 Melee 8 | . . . 8 . Projectile . | . . . . . AOE 104 | . . 26 40 38 Terrain Rammed . | . . . . . Walls Destroyed . | . . . . . Machines Disabled . | . . . . . Actions | -11 -10 -10 -9 -9 --------- Run | Yrd Mat Min Mat Min Total 2047 | 94 500 226 888 339 Wait 207 | 41 49 2 111 4 Move 1623 | 43 389 207 658 326 Hop . | . . . . . Pick Up 23 | . 8 2 11 2 Fast Attach 9 | 6 2 . 1 . Attach 6 | . 4 . 2 . Detach . | . . . . . Swap 21 | . 2 2 14 3 Drop 20 | . 4 4 11 1 Fire 119 | 4 42 9 61 3 Melee 19 | . . . 19 . Ram . | . . . . . Kick . | . . . . . Crush . | . . . . . Escape Stasis . | . . . . . Rewire . | . . . . . Trap . | . . . . . Miscellaneous . | . . . . . Route ------- -11/Scrapyard -10/Materials (discovered 2 exits: *Mat / [*Min]) -10/Mines -9/Materials (discovered 3 exits: *Mat / [*Min x2]) -9/Mines (discovered 2 exits: *Mat x2) History --------- Turn | Location | Event 3 | -11/Scrapyard | Discovered new exit (range 15) 126 | -11/Scrapyard | Entered Materials 307 | -10/Materials | Build established: Mutant 644 | -10/Materials | Discovered new exit (range 8) 894 | -10/Materials | Discovered new exit (range 13) 921 | -10/Materials | Entered Mines 928 | -10/Mines | Assisted by bots powering up and referring to "LRC-V3" 1033 | -10/Mines | Discovered new exit (range 12) 1059 | -10/Mines | Learned location of Zion (-6) 1279 | -10/Mines | Entered Materials 1279 | -9/Materials | Accompanied by 2 allies 1279 | -9/Materials | Evolved 2 slots: Propulsion x1, Utility x1 1846 | -9/Materials | Discovered new exit (range 5) 1884 | -9/Materials | Build established: Scavenger-Mutant 1900 | -9/Materials | Discovered new exit (range 14) 2368 | -9/Materials | Repaired Lgt. Cannon 2623 | -9/Materials | Discovered new exit (range 5) 2654 | -9/Materials | Entered Mines 2806 | -9/Mines | Discovered new exit (range 8) 2915 | -9/Mines | Received a Rocket Launcher from a helpful Derelict 2972 | -9/Mines | Identified exit to Materials 2987 | -9/Mines | Assembled infested the area 3196 | -9/Mines | Self-destructed Last Messages --------------- 02915_ Dropped Grenade Launcher. 02921_ Acquired Rocket Launcher. 02933_ K-01 Serf collects debris. 02942_ R-06 Scavenger collects Grenade Launcher. 02966_ K-01 Serf collects debris. 02972_ Acquired derelict log, extracted data. 02983_ Searching scrap... 02983_ Found Mining Laser. 02983_ Found 18 Matter. 02984_ Acquired 18 matter. 02987_ ALERT: Infestation in the mines, dispatching Demolisher response squad. 03004_ as-28237 powers down. 03150_ T-07 Excavator is excavating. 03187_ The unstable cave ceiling collapses. 03190_ T-07 Excavator destroyed. 03191_ The unstable cave ceiling collapses. 03194_ Lgt. Treads destroyed. 03194_ Lgt. Armor Plating destroyed. 03195_ The unstable cave ceiling collapses. Map ----- +----------------------------------------------------+ | | | | | | | | | | | ?????????????????????????????????????????????????? | | ?????????????????????????????????????????????????? | | ?????????????????####?????????????????#######????? | | ???????????####### ##???????????????## ##???? | | ??????????## #??????????????## ####? | | ??????????# #????????????### """ #? | | ??????????# #???#???????## """ #?#!## | | ??????????# #??? ???????# """ ### ## | | ??????????# #### ###????# ]! | | ?????????## ## #????# # | | ????###### # #????##### #### #### | | ????# ## #????????## #??# #??## | | ????# ### #????????# #??# #???# | | ????# #?# # #????????# ###### ####? | | ????# #?## #### ###????????# # #? | | ????# #??###### #?## ####???????# # """ """ #? | | ????# #???????## ## # ##??????# # """ """ #? | | ????# #???????## # ##?????# # """ """ #? | | ????# #??????## #?????# # #? | | ????# #??????# #?????# # < #? | | ????# #??????# # @ #?????# # #? | | ????# #??????# ## #?????# # ?? | | ????# #??????####### #?????# ## #######?? | | ????# #???###??????# # #?????# ## #???????? | | ????# ##### ###???# d #?????# #???????? | | ????# #? #???# #????# #???????? | | ????# #?? ????## #d#????#### #???????? | | ????# #?? ?????# # ######### #???????? | | ????# #??? ?????## # ## ######### | | ????# #???? #??????####?### r | | ????# #????# #?######??????## ###### ] | | ????# ###### ### ##??????# #????## ###### | | ????# ## ## ######## #?????## ##????? | | ????# ## #?# #??????#####?????? | | ????# ## ### ###########????????????????? | | ???## ## ## ##??????????????????????????? | | ??## ## ## #?????????????????###???????? | | ### ##### #???????????????## ##??????? | | ##???# ????????????### ##?????? | | ## ##???####???????#### ?????? | | ###### #####????????### #??????? | | #????## ##???????? ##?????? | | ##?????# #???????? ??????? | | #####??????## #????????? ????????? | | ????????????# ##????????? #?????????? | +----------------------------------------------------+ Best States ------------- Heat Dissipation 28 Energy Generation 14 Energy Capacity 280 Matter Stores 300 Matter Capacity 300 Sight Range 16 Terrain Scan Density 10 Armor Coverage 150 Evasion (%) 40 Recoil Reduction 3 Item Schematics ----------------- None Robot Schematics ------------------ None Fabricated ------------ Nothing Alien Tech Used ----------------- None Achievements -------------- None Challenges ------------ None Game ------ Seed TeslaHugeLaser Manual? 0 Play Time 00:39:40 Cumulative 146.3 hours Start 2024.04.16 @ 12:08:28 End 2024.04.19 @ 03:07:39 Sessions 4 Manual Loads 0 Difficulty Rogue Special Mode None Game No. 140 Rogue 140 Adventurer 0 Explorer 0 Win Type - Total 0 Types 0/0/0/0/0/0/0/0/0 Lore% 37 Gallery% 44 Achievement% 35 Wizard Run 0 Options --------- Layout 0 ASCII 1 Keyboard 0 Movement Mouse Keybinds 0 Fullscreen 1 Font 18/SmallcapsGlow Map View 76x50 Zoom Use 0% Tactical HUD 1 Map Filters NONE Filters NONE Steam 1 RUN: d6a2e437-f541-4d11-9133-57d031bb3ff0